[Event "Early-Titled-Tuesday-Blitz-September-05-2023"]
[Site "Chess.com"]
[Date "2023.09.05"]
[Round "6"]
[White "Darius321"]
[Black "hakanazeri2"]
[Result "1-0"]
[WhiteElo "2318"]
[BlackElo "2572"]
[TimeControl "180+1"]
[EndTime "9:07:03 PDT"]
[Termination "Darius321 won by resignation"]

1. e4 {[%clk 0:03:00.9]} 1... c5 {[%clk 0:02:56.9]} 2. Nf3 {[%clk 0:03:00.6]}
2... Nc6 {[%clk 0:02:57.5]} 3. Bb5 {[%clk 0:03:01]} 3... g6 {[%clk 0:02:55.9]}
4. O-O {[%clk 0:03:00.9]} 4... Bg7 {[%clk 0:02:55.3]} 5. Re1 {[%clk 0:03:01]}
5... Nf6 {[%clk 0:02:52.9]} 6. h3 {[%clk 0:02:58.6]} 6... O-O {[%clk 0:02:51.3]}
7. c3 {[%clk 0:02:58.9]} 7... d6 {[%clk 0:02:49.7]} 8. d4 {[%clk 0:02:58.5]}
8... cxd4 {[%clk 0:02:47.7]} 9. cxd4 {[%clk 0:02:59.4]} 9... a6 {[%clk
0:02:47.7]} 10. Bxc6 {[%clk 0:02:59.2]} 10... bxc6 {[%clk 0:02:48.6]} 11. Nc3
{[%clk 0:02:59.3]} 11... d5 {[%clk 0:02:44.1]} 12. e5 {[%clk 0:02:55.3]} 12...
Ne4 {[%clk 0:02:38.1]} 13. Nxe4 {[%clk 0:02:54]} 13... dxe4 {[%clk 0:02:39]} 14.
Rxe4 {[%clk 0:02:53.6]} 14... c5 {[%clk 0:02:36.6]} 15. Bg5 {[%clk 0:02:46]}
15... Bb7 {[%clk 0:02:26.9]} 16. Re1 {[%clk 0:02:45.5]} 16... h6 {[%clk
0:02:23.7]} 17. Bh4 {[%clk 0:02:15.8]} 17... cxd4 {[%clk 0:02:20.5]} 18. Qxd4
{[%clk 0:02:09.5]} 18... Bxf3 {[%clk 0:02:16.7]} 19. Qxd8 {[%clk 0:02:08.7]}
19... Rfxd8 {[%clk 0:02:14.9]} 20. gxf3 {[%clk 0:02:08.3]} 20... g5 {[%clk
0:02:15.3]} 21. Bg3 {[%clk 0:02:08.5]} 21... Rd2 {[%clk 0:02:15.5]} 22. b3
{[%clk 0:01:59.5]} 22... Rc8 {[%clk 0:02:12.2]} 23. Red1 {[%clk 0:01:56.7]}
23... Re2 {[%clk 0:02:10.3]} 24. Re1 {[%clk 0:01:49.9]} 24... Rd2 {[%clk
0:01:58.2]} 25. Red1 {[%clk 0:01:49.5]} 25... Re2 {[%clk 0:01:53.6]} 26. Re1
{[%clk 0:01:40]} 26... Rxe1+ {[%clk 0:01:48.6]} 27. Rxe1 {[%clk 0:01:39.4]}
27... Rc2 {[%clk 0:01:49.5]} 28. a4 {[%clk 0:01:36.6]} 28... e6 {[%clk
0:01:47.8]} 29. Re3 {[%clk 0:01:32.5]} 29... Kh7 {[%clk 0:01:40.4]} 30. f4
{[%clk 0:01:32.5]} 30... Kg6 {[%clk 0:01:38.7]} 31. fxg5 {[%clk 0:01:30.3]}
31... hxg5 {[%clk 0:01:39.6]} 32. Kg2 {[%clk 0:01:30.2]} 32... Rb2 {[%clk
0:01:34]} 33. Kf3 {[%clk 0:01:26.6]} 33... Bf8 {[%clk 0:01:32]} 34. h4 {[%clk
0:01:17.2]} 34... gxh4 {[%clk 0:01:30.3]} 35. Bxh4 {[%clk 0:01:17.4]} 35... Kf5
{[%clk 0:01:30.3]} 36. Bg3 {[%clk 0:01:08.4]} 36... a5 {[%clk 0:01:11.6]} 37.
Kg2 {[%clk 0:01:08.3]} 37... Bg7 {[%clk 0:01:06.3]} 38. Rf3+ {[%clk 0:01:07.8]}
38... Kg6 {[%clk 0:01:05.3]} 39. Bf4 {[%clk 0:01:05.4]} 39... Re2 {[%clk
0:01:01.6]} 40. Rg3+ {[%clk 0:01:02.6]} 40... Kh7 {[%clk 0:00:59.9]} 41. Re3
{[%clk 0:00:58.5]} 41... Rxe3 {[%clk 0:00:55]} 42. fxe3 {[%clk 0:00:56.5]} 42...
Kg6 {[%clk 0:00:54.1]} 43. Kf3 {[%clk 0:00:56.2]} 43... Bf8 {[%clk 0:00:53.6]}
44. Ke4 {[%clk 0:00:55.1]} 44... Bb4 {[%clk 0:00:53]} 45. Bg3 {[%clk 0:00:52.4]}
45... Kg5 {[%clk 0:00:52.3]} 46. Bf2 {[%clk 0:00:51.6]} 46... Kg4 {[%clk
0:00:52.1]} 47. Kd3 {[%clk 0:00:28]} 47... Kf5 {[%clk 0:00:44.4]} 48. Bg3 {[%clk
0:00:26.7]} 48... Kg4 {[%clk 0:00:42.9]} 49. Bf4 {[%clk 0:00:26.8]} 49... Kf5
{[%clk 0:00:42.2]} 50. Kc4 {[%clk 0:00:26.5]} 50... Ke4 {[%clk 0:00:41.9]} 51.
Kb5 {[%clk 0:00:26]} 51... Bd2 {[%clk 0:00:39.9]} 52. Ka6 {[%clk 0:00:25.8]}
52... Bc3 {[%clk 0:00:37.7]} 53. Kb5 {[%clk 0:00:25.5]} 53... Bb4 {[%clk
0:00:35.2]} 54. Kc4 {[%clk 0:00:25.6]} 54... Bd2 {[%clk 0:00:33.3]} 55. Kb5
{[%clk 0:00:25.9]} 55... Kd3 {[%clk 0:00:33.6]} 56. Ka6 {[%clk 0:00:21.5]} 56...
Kc2 {[%clk 0:00:30.6]} 57. Kb5 {[%clk 0:00:16.9]} 57... Kxb3 {[%clk 0:00:30]}
58. Bg5 {[%clk 0:00:16.4]} 58... Bc3 {[%clk 0:00:15.4]} 59. Bd8 {[%clk
0:00:16.1]} 59... Bxe5 {[%clk 0:00:14.7]} 60. Bxa5 {[%clk 0:00:16.7]} 60... Kc2
{[%clk 0:00:13.6]} 61. Bb6 {[%clk 0:00:16.1]} 61... Kd3 {[%clk 0:00:13.9]} 62.
a5 {[%clk 0:00:16.3]} 62... Ke4 {[%clk 0:00:09.2]} 63. Kc6 {[%clk 0:00:14.3]}
63... Bb8 {[%clk 0:00:09.9]} 64. Kb7 {[%clk 0:00:14]} 1-0

[Event "Early-Titled-Tuesday-Blitz-September-05-2023"]
[Site "Chess.com"]
[Date "2023.09.05"]
[Round "6"]
[White "DrDreBeats"]
[Black "Casablanca"]
[Result "1-0"]
[WhiteElo "2559"]
[BlackElo "2692"]
[TimeControl "180+1"]
[EndTime "9:07:04 PDT"]
[Termination "DrDreBeats won on time"]

1. e4 {[%clk 0:03:00.9]} 1... c5 {[%clk 0:03:00.1]} 2. Nf3 {[%clk 0:03:00.5]}
2... d6 {[%clk 0:02:59.8]} 3. d4 {[%clk 0:03:01.1]} 3... cxd4 {[%clk 0:03:00.7]}
4. Nxd4 {[%clk 0:03:01.7]} 4... Nf6 {[%clk 0:03:01.2]} 5. Nc3 {[%clk 0:03:02.1]}
5... Nc6 {[%clk 0:02:57]} 6. h3 {[%clk 0:03:01.9]} 6... g6 {[%clk 0:02:54.3]} 7.
Nde2 {[%clk 0:03:01.5]} 7... Bg7 {[%clk 0:02:54.4]} 8. g3 {[%clk 0:03:01.9]}
8... O-O {[%clk 0:02:54.9]} 9. Bg2 {[%clk 0:03:02.5]} 9... Bd7 {[%clk
0:02:37.7]} 10. O-O {[%clk 0:03:02.4]} 10... Rc8 {[%clk 0:02:38.3]} 11. Be3
{[%clk 0:03:02.4]} 11... a6 {[%clk 0:02:30]} 12. Rc1 {[%clk 0:03:02.6]} 12...
Ne5 {[%clk 0:02:28.5]} 13. b3 {[%clk 0:03:03.1]} 13... Qa5 {[%clk 0:02:28]} 14.
Nd5 {[%clk 0:03:02.6]} 14... Nxd5 {[%clk 0:02:26.7]} 15. exd5 {[%clk 0:03:03.5]}
15... Be8 {[%clk 0:02:01]} 16. c4 {[%clk 0:02:39.7]} 16... b5 {[%clk 0:01:42.2]}
17. f4 {[%clk 0:02:20.6]} 17... Nd7 {[%clk 0:01:41.4]} 18. Qd2 {[%clk
0:02:15.8]} 18... Qxd2 {[%clk 0:01:36.3]} 19. Bxd2 {[%clk 0:02:16]} 19... bxc4
{[%clk 0:01:37.2]} 20. bxc4 {[%clk 0:02:15.8]} 20... Nc5 {[%clk 0:01:37.1]} 21.
Bc3 {[%clk 0:02:11.8]} 21... Nd3 {[%clk 0:01:29.7]} 22. Rcd1 {[%clk 0:02:03.1]}
22... Bxc3 {[%clk 0:01:28]} 23. Rxd3 {[%clk 0:02:03.3]} 23... Bb4 {[%clk
0:00:59.5]} 24. Rc1 {[%clk 0:02:01.4]} 24... Bd7 {[%clk 0:00:57.9]} 25. Kh2
{[%clk 0:02:01]} 25... Bc5 {[%clk 0:00:47.3]} 26. Rb3 {[%clk 0:02:00.2]} 26...
Rb8 {[%clk 0:00:41.2]} 27. Rcb1 {[%clk 0:01:57.2]} 27... Rxb3 {[%clk 0:00:41.8]}
28. Rxb3 {[%clk 0:01:56.7]} 28... Bf5 {[%clk 0:00:36.2]} 29. Nc3 {[%clk
0:01:24.3]} 29... Rc8 {[%clk 0:00:31.5]} 30. Na4 {[%clk 0:01:19.9]} 30... h5
{[%clk 0:00:22.8]} 31. Rb7 {[%clk 0:01:17.8]} 31... Kf8 {[%clk 0:00:22.2]} 32.
Bf1 {[%clk 0:01:14.6]} 32... Bc2 {[%clk 0:00:19.9]} 33. Nb6 {[%clk 0:01:13.2]}
33... Bxb6 {[%clk 0:00:16.8]} 34. Rxb6 {[%clk 0:01:14.1]} 34... a5 {[%clk
0:00:17.5]} 35. a3 {[%clk 0:01:10.9]} 35... Rc5 {[%clk 0:00:17.2]} 36. Kg2
{[%clk 0:01:10.6]} 36... Kg7 {[%clk 0:00:17.6]} 37. Kf3 {[%clk 0:01:10.8]} 37...
Kf6 {[%clk 0:00:18]} 38. Ke3 {[%clk 0:01:09.9]} 38... g5 {[%clk 0:00:15.1]} 39.
fxg5+ {[%clk 0:01:08.2]} 39... Kxg5 {[%clk 0:00:16]} 40. Rb7 {[%clk 0:01:08.2]}
40... Kf6 {[%clk 0:00:16.5]} 41. Kd4 {[%clk 0:01:08.5]} 41... Bf5 {[%clk
0:00:16.2]} 42. Rb5 {[%clk 0:01:02.9]} 42... Rc7 {[%clk 0:00:06.3]} 43. Rxa5
{[%clk 0:01:02.2]} 43... e5+ {[%clk 0:00:07]} 44. dxe6 {[%clk 0:01:01.3]} 44...
fxe6 {[%clk 0:00:07.9]} 45. Be2 {[%clk 0:00:58.2]} 45... Bxh3 {[%clk 0:00:07.6]}
46. Rxh5 {[%clk 0:00:55.6]} 46... e5+ {[%clk 0:00:07.9]} 47. Kd5 {[%clk
0:00:53.5]} 47... Bg2+ {[%clk 0:00:06.3]} 48. Kxd6 {[%clk 0:00:53.8]} 48... Ra7
{[%clk 0:00:07]} 49. c5 {[%clk 0:00:41.5]} 49... Rxa3 {[%clk 0:00:06.7]} 50.
Rxe5 {[%clk 0:00:39.3]} 50... Rxg3 {[%clk 0:00:04]} 51. Re6+ {[%clk 0:00:38.4]}
51... Kf7 {[%clk 0:00:04.1]} 52. Bc4 {[%clk 0:00:36.8]} 52... Kf8 {[%clk
0:00:04.8]} 53. Rf6+ {[%clk 0:00:35.7]} 53... Kg7 {[%clk 0:00:05.4]} 54. Rf7+
{[%clk 0:00:35.6]} 54... Kg6 {[%clk 0:00:06.2]} 55. Rf2 {[%clk 0:00:35.5]} 55...
Rg5 {[%clk 0:00:05.9]} 56. Rd2 {[%clk 0:00:31.3]} 56... Be4 {[%clk 0:00:05.4]}
57. Bd5 {[%clk 0:00:31]} 57... Bf5 {[%clk 0:00:04.6]} 58. c6 {[%clk 0:00:31.1]}
58... Rg3 {[%clk 0:00:05]} 59. Be6 {[%clk 0:00:29.1]} 59... Be4 {[%clk
0:00:03.5]} 60. c7 {[%clk 0:00:29.2]} 60... Bb7 {[%clk 0:00:01.7]} 61. Bd5
{[%clk 0:00:27.8]} 61... Bc8 {[%clk 0:00:01.5]} 62. Rg2 {[%clk 0:00:27.2]} 62...
Rxg2 {[%clk 0:00:01.6]} 63. Bxg2 {[%clk 0:00:27.7]} 63... Kf6 {[%clk 0:00:02.5]}
64. Bc6 {[%clk 0:00:28.3]} 64... Kf7 {[%clk 0:00:02.9]} 65. Bd7 {[%clk
0:00:28.6]} 65... Bb7 {[%clk 0:00:03.5]} 66. Kc5 {[%clk 0:00:29.2]} 66... Ke7
{[%clk 0:00:03.7]} 67. Kb6 {[%clk 0:00:29.8]} 1-0

[Event "Early-Titled-Tuesday-Blitz-September-05-2023"]
[Site "Chess.com"]
[Date "2023.09.05"]
[Round "6"]
[White "MikeSailer"]
[Black "emeli_chess"]
[Result "0-1"]
[WhiteElo "2173"]
[BlackElo "2371"]
[TimeControl "180+1"]
[EndTime "9:07:07 PDT"]
[Termination "emeli_chess won on time"]

1. d4 {[%clk 0:03:00]} 1... Nf6 {[%clk 0:02:59.6]} 2. Nc3 {[%clk 0:03:00.6]}
2... d5 {[%clk 0:02:59.2]} 3. Bf4 {[%clk 0:03:00.4]} 3... c5 {[%clk 0:02:58.9]}
4. e4 {[%clk 0:02:56]} 4... cxd4 {[%clk 0:02:56.5]} 5. Qxd4 {[%clk 0:02:54.4]}
5... Nc6 {[%clk 0:02:56.7]} 6. Bb5 {[%clk 0:02:53.8]} 6... Bd7 {[%clk
0:02:56.7]} 7. Bxc6 {[%clk 0:02:53.3]} 7... Bxc6 {[%clk 0:02:57.1]} 8. e5 {[%clk
0:02:53.7]} 8... Ne4 {[%clk 0:02:57.5]} 9. e6 {[%clk 0:02:41.8]} 9... fxe6
{[%clk 0:02:57.3]} 10. Nxe4 {[%clk 0:02:38.3]} 10... dxe4 {[%clk 0:02:56.9]} 11.
O-O-O {[%clk 0:02:32.9]} 11... Qxd4 {[%clk 0:02:54.9]} 12. Rxd4 {[%clk
0:02:33.5]} 12... g6 {[%clk 0:02:42.8]} 13. Be5 {[%clk 0:02:30.2]} 13... Bh6+
{[%clk 0:02:42.6]} 14. Kb1 {[%clk 0:02:27.2]} 14... Rf8 {[%clk 0:02:42]} 15. Nh3
{[%clk 0:02:24.8]} 15... Rd8 {[%clk 0:02:32.7]} 16. Rhd1 {[%clk 0:02:19.1]}
16... Rxd4 {[%clk 0:02:31.5]} 17. Rxd4 {[%clk 0:02:19.2]} 17... Rf5 {[%clk
0:02:29.4]} 18. Bb8 {[%clk 0:02:08.6]} 18... e3 {[%clk 0:02:17.1]} 19. f3 {[%clk
0:02:01.6]} 19... e2 {[%clk 0:02:17.1]} 20. Bg3 {[%clk 0:02:02.4]} 20... Rd5
{[%clk 0:02:08.5]} 21. Rxd5 {[%clk 0:01:46.9]} 21... exd5 {[%clk 0:02:06.3]} 22.
Be1 {[%clk 0:01:39.7]} 22... Be3 {[%clk 0:02:00.7]} 23. c3 {[%clk 0:01:32]}
23... d4 {[%clk 0:01:54.2]} 24. Kc2 {[%clk 0:01:26.7]} 24... e5 {[%clk
0:01:48.1]} 25. Kd3 {[%clk 0:01:21.5]} 25... Bc1 {[%clk 0:01:37.5]} 26. Kxe2
{[%clk 0:01:12.3]} 26... Bxb2 {[%clk 0:01:36.6]} 27. cxd4 {[%clk 0:01:11.3]}
27... exd4 {[%clk 0:01:34.6]} 28. Kd3 {[%clk 0:01:05.8]} 28... Bb5+ {[%clk
0:01:33.6]} 29. Ke4 {[%clk 0:01:05.9]} 29... Bf1 {[%clk 0:01:31.2]} 30. Nf4
{[%clk 0:01:05.5]} 30... Kd7 {[%clk 0:01:27.8]} 31. g3 {[%clk 0:01:02.2]} 31...
Kc6 {[%clk 0:01:23.4]} 32. Ne6 {[%clk 0:00:59.2]} 32... d3 {[%clk 0:01:05.5]}
33. Nf4 {[%clk 0:00:49.3]} 33... Kc5 {[%clk 0:01:01.9]} 34. Nxd3+ {[%clk
0:00:49.7]} 34... Bxd3+ {[%clk 0:01:01.5]} 35. Kxd3 {[%clk 0:00:50]} 35... Kd5
{[%clk 0:01:01.9]} 36. Bf2 {[%clk 0:00:40.6]} 36... a6 {[%clk 0:01:00.8]} 37.
Bb6 {[%clk 0:00:38.7]} 37... Be5 {[%clk 0:00:57.8]} 38. f4 {[%clk 0:00:37]}
38... Bd6 {[%clk 0:00:57.1]} 39. Be3 {[%clk 0:00:33.9]} 39... b5 {[%clk
0:00:55.7]} 40. g4 {[%clk 0:00:33.6]} 40... h5 {[%clk 0:00:38.5]} 41. h3 {[%clk
0:00:28.8]} 41... b4 {[%clk 0:00:36.1]} 42. f5 {[%clk 0:00:16.7]} 42... gxf5
{[%clk 0:00:36.2]} 43. gxh5 {[%clk 0:00:12.7]} 43... Be5 {[%clk 0:00:34.7]} 44.
Bd2 {[%clk 0:00:11.5]} 44... a5 {[%clk 0:00:33.7]} 45. h6 {[%clk 0:00:11.9]}
45... Kc5 {[%clk 0:00:27.2]} 46. h7 {[%clk 0:00:08.9]} 46... a4 {[%clk
0:00:26.7]} 47. Be3+ {[%clk 0:00:08.7]} 47... Kd5 {[%clk 0:00:26.7]} 48. Bd2
{[%clk 0:00:09.6]} 48... b3 {[%clk 0:00:26.6]} 49. axb3 {[%clk 0:00:09.9]} 49...
axb3 {[%clk 0:00:21.3]} 50. Bc3 {[%clk 0:00:10.7]} 50... b2 {[%clk 0:00:12.1]}
51. Bxe5 {[%clk 0:00:10.2]} 51... b1=Q+ {[%clk 0:00:12.2]} 52. Ke2 {[%clk
0:00:10.2]} 52... Qe4+ {[%clk 0:00:11.2]} 0-1

[Event "Early-Titled-Tuesday-Blitz-September-05-2023"]
[Site "Chess.com"]
[Date "2023.09.05"]
[Round "6"]
[White "GaiozNigalidze"]
[Black "03revilo"]
[Result "1-0"]
[WhiteElo "2760"]
[BlackElo "2448"]
[TimeControl "180+1"]
[EndTime "9:07:09 PDT"]
[Termination "GaiozNigalidze won on time"]

1. d4 {[%clk 0:03:00.9]} 1... Nf6 {[%clk 0:02:58.7]} 2. c4 {[%clk 0:02:58.3]}
2... c5 {[%clk 0:02:59.1]} 3. dxc5 {[%clk 0:02:55.9]} 3... e6 {[%clk 0:02:58.3]}
4. Nc3 {[%clk 0:02:53.8]} 4... Bxc5 {[%clk 0:02:57.5]} 5. Nf3 {[%clk 0:02:53]}
5... O-O {[%clk 0:02:56.5]} 6. e3 {[%clk 0:02:51]} 6... d5 {[%clk 0:02:56.4]} 7.
cxd5 {[%clk 0:02:51.2]} 7... exd5 {[%clk 0:02:57.3]} 8. Be2 {[%clk 0:02:51.5]}
8... Nc6 {[%clk 0:02:57.4]} 9. O-O {[%clk 0:02:50.3]} 9... a6 {[%clk 0:02:44.7]}
10. a3 {[%clk 0:02:41.5]} 10... d4 {[%clk 0:02:43.2]} 11. exd4 {[%clk
0:02:41.4]} 11... Nxd4 {[%clk 0:02:43.3]} 12. Nxd4 {[%clk 0:02:41.6]} 12... Qxd4
{[%clk 0:02:35.3]} 13. Bg5 {[%clk 0:02:09.3]} 13... h6 {[%clk 0:02:34.5]} 14.
Bxf6 {[%clk 0:02:04.6]} 14... Qxf6 {[%clk 0:02:30.4]} 15. Ne4 {[%clk 0:02:02.7]}
15... Qe7 {[%clk 0:02:26.5]} 16. Nxc5 {[%clk 0:02:01.5]} 16... Qxc5 {[%clk
0:02:27.4]} 17. Bf3 {[%clk 0:01:54.1]} 17... a5 {[%clk 0:01:43.3]} 18. Rc1
{[%clk 0:01:43.9]} 18... Qe5 {[%clk 0:01:43]} 19. Qd2 {[%clk 0:01:08.8]} 19...
Be6 {[%clk 0:01:30.2]} 20. Rfe1 {[%clk 0:01:07.9]} 20... Qb5 {[%clk 0:01:29.5]}
21. b4 {[%clk 0:01:03.2]} 21... axb4 {[%clk 0:01:27.8]} 22. axb4 {[%clk
0:01:04.1]} 22... Ra2 {[%clk 0:01:25.3]} 23. Qd4 {[%clk 0:01:00.2]} 23... Ra4
{[%clk 0:01:08.5]} 24. Re4 {[%clk 0:00:52.2]} 24... Rfa8 {[%clk 0:00:55.2]} 25.
h3 {[%clk 0:00:43.2]} 25... Qd5 {[%clk 0:00:25]} 26. Qe3 {[%clk 0:00:30.5]}
26... Ra1 {[%clk 0:00:21]} 27. Rxa1 {[%clk 0:00:17.4]} 27... Rxa1+ {[%clk
0:00:21.9]} 28. Kh2 {[%clk 0:00:17.9]} 28... Qd6+ {[%clk 0:00:22.2]} 29. Qf4
{[%clk 0:00:15.1]} 29... Qxf4+ {[%clk 0:00:20.7]} 30. Rxf4 {[%clk 0:00:16]}
30... b6 {[%clk 0:00:18.8]} 31. Bc6 {[%clk 0:00:15.7]} 31... Rb1 {[%clk
0:00:17.4]} 32. Rd4 {[%clk 0:00:15.5]} 32... Kf8 {[%clk 0:00:15.4]} 33. Kg3
{[%clk 0:00:14.3]} 33... Ke7 {[%clk 0:00:15.6]} 34. f4 {[%clk 0:00:14.3]} 34...
Rb3+ {[%clk 0:00:13.8]} 35. Kf2 {[%clk 0:00:14.5]} 35... g5 {[%clk 0:00:12.3]}
36. fxg5 {[%clk 0:00:14.2]} 36... hxg5 {[%clk 0:00:13.2]} 37. Ke2 {[%clk
0:00:14]} 37... Kf6 {[%clk 0:00:12.6]} 38. Kd2 {[%clk 0:00:12.5]} 38... Ke5
{[%clk 0:00:11.6]} 39. Re4+ {[%clk 0:00:12.9]} 39... Kd6 {[%clk 0:00:11.5]} 40.
b5 {[%clk 0:00:11]} 40... Rb2+ {[%clk 0:00:09.6]} 41. Kc3 {[%clk 0:00:09.5]}
41... Rb3+ {[%clk 0:00:07]} 42. Kd2 {[%clk 0:00:09.2]} 42... Rg3 {[%clk
0:00:06]} 43. Rd4+ {[%clk 0:00:07]} 43... Kc5 {[%clk 0:00:05.9]} 44. Rd8 {[%clk
0:00:07.2]} 44... Bc4 {[%clk 0:00:04.6]} 45. Rc8 {[%clk 0:00:05.7]} 45... Bxb5
{[%clk 0:00:03.5]} 46. Bb7+ {[%clk 0:00:06.1]} 46... Kb4 {[%clk 0:00:03.4]} 47.
Ke1 {[%clk 0:00:06.6]} 47... Bc4 {[%clk 0:00:02.5]} 48. Kf2 {[%clk 0:00:06.8]}
48... Rc3 {[%clk 0:00:02.2]} 49. Rg8 {[%clk 0:00:06.5]} 49... b5 {[%clk
0:00:02.3]} 50. Rxg5 {[%clk 0:00:06.4]} 50... Be6 {[%clk 0:00:02.4]} 51. h4
{[%clk 0:00:06.4]} 51... Rc2+ {[%clk 0:00:02.8]} 52. Kg3 {[%clk 0:00:06.2]}
52... Rc3+ {[%clk 0:00:03]} 53. Kh2 {[%clk 0:00:06.2]} 53... Rc4 {[%clk
0:00:02.8]} 54. h5 {[%clk 0:00:05.9]} 54... Ka4 {[%clk 0:00:01.8]} 55. Kg3
{[%clk 0:00:05.9]} 55... Rc3+ {[%clk 0:00:01.8]} 56. Bf3 {[%clk 0:00:06.6]}
56... b4 {[%clk 0:00:01.9]} 57. h6 {[%clk 0:00:06.9]} 57... b3 {[%clk
0:00:02.2]} 58. h7 {[%clk 0:00:07.2]} 58... Rc8 {[%clk 0:00:01.9]} 59. Rg8
{[%clk 0:00:07.4]} 59... b2 {[%clk 0:00:01.4]} 60. Rxc8 {[%clk 0:00:07.4]} 60...
Bxc8 {[%clk 0:00:02.2]} 61. Be4 {[%clk 0:00:06]} 61... f5 {[%clk 0:00:01.4]} 62.
Bc2+ {[%clk 0:00:05.6]} 1-0

[Event "Early-Titled-Tuesday-Blitz-September-05-2023"]
[Site "Chess.com"]
[Date "2023.09.05"]
[Round "6"]
[White "MFatigue"]
[Black "MKlose11"]
[Result "0-1"]
[WhiteElo "2517"]
[BlackElo "2659"]
[TimeControl "180+1"]
[EndTime "9:07:11 PDT"]
[Termination "MKlose11 won on time"]

1. e4 {[%clk 0:03:00.9]} 1... e6 {[%clk 0:02:59.6]} 2. d4 {[%clk 0:03:00.8]}
2... d5 {[%clk 0:02:58.8]} 3. Nc3 {[%clk 0:03:01.7]} 3... Bb4 {[%clk 0:02:57.9]}
4. e5 {[%clk 0:03:01.6]} 4... Ne7 {[%clk 0:02:57.2]} 5. a3 {[%clk 0:03:01.4]}
5... Bxc3+ {[%clk 0:02:56.1]} 6. bxc3 {[%clk 0:03:02.3]} 6... b6 {[%clk
0:02:56.6]} 7. Nf3 {[%clk 0:03:01.3]} 7... Ba6 {[%clk 0:02:55.8]} 8. Bd3 {[%clk
0:03:02]} 8... Bxd3 {[%clk 0:02:55.7]} 9. cxd3 {[%clk 0:03:00.3]} 9... c5 {[%clk
0:02:55.3]} 10. dxc5 {[%clk 0:02:59.9]} 10... bxc5 {[%clk 0:02:56.2]} 11. O-O
{[%clk 0:02:57.4]} 11... Nbc6 {[%clk 0:02:55.9]} 12. Be3 {[%clk 0:02:54.6]}
12... Qa5 {[%clk 0:02:55.5]} 13. d4 {[%clk 0:02:50.1]} 13... cxd4 {[%clk
0:02:41]} 14. cxd4 {[%clk 0:02:49.7]} 14... O-O {[%clk 0:02:41.9]} 15. Qd3
{[%clk 0:02:39.3]} 15... h6 {[%clk 0:02:35.9]} 16. Rfc1 {[%clk 0:02:34.4]} 16...
Rab8 {[%clk 0:02:32.3]} 17. Rc5 {[%clk 0:02:34]} 17... Qa4 {[%clk 0:02:30.9]}
18. Rac1 {[%clk 0:02:26.4]} 18... Rb6 {[%clk 0:02:25.6]} 19. Nd2 {[%clk
0:02:20.9]} 19... Rfb8 {[%clk 0:02:21.3]} 20. g4 {[%clk 0:02:20.6]} 20... Ra6
{[%clk 0:01:58.1]} 21. Kg2 {[%clk 0:02:06.3]} 21... Rab6 {[%clk 0:01:54.2]} 22.
f4 {[%clk 0:01:59.7]} 22... Rb2 {[%clk 0:01:49.7]} 23. R1c2 {[%clk 0:01:32.6]}
23... Rxc2 {[%clk 0:01:42]} 24. Rxc2 {[%clk 0:01:33.5]} 24... Qb5 {[%clk
0:01:35.2]} 25. Qxb5 {[%clk 0:01:26.3]} 25... Rxb5 {[%clk 0:01:36.1]} 26. Ra2
{[%clk 0:01:09.4]} 26... Kf8 {[%clk 0:01:35]} 27. Kf2 {[%clk 0:01:09.1]} 27...
Ke8 {[%clk 0:01:35]} 28. Ke2 {[%clk 0:01:09.8]} 28... Kd7 {[%clk 0:01:29.3]} 29.
Kd3 {[%clk 0:01:10.3]} 29... h5 {[%clk 0:01:29]} 30. h3 {[%clk 0:01:10]} 30...
Rb8 {[%clk 0:01:26.3]} 31. Ra1 {[%clk 0:01:00.2]} 31... hxg4 {[%clk 0:01:25.8]}
32. hxg4 {[%clk 0:01:00]} 32... Rh8 {[%clk 0:01:26.7]} 33. Nb3 {[%clk
0:00:59.7]} 33... Rh4 {[%clk 0:01:23.4]} 34. Nc5+ {[%clk 0:01:00.1]} 34... Kc8
{[%clk 0:01:21.1]} 35. Rg1 {[%clk 0:01:00.6]} 35... Na5 {[%clk 0:01:13]} 36. Bf2
{[%clk 0:00:39.6]} 36... Rh3+ {[%clk 0:01:11]} 37. Rg3 {[%clk 0:00:38.8]} 37...
Rxg3+ {[%clk 0:01:08.7]} 38. Bxg3 {[%clk 0:00:39.7]} 38... Nc4 {[%clk
0:01:09.1]} 39. a4 {[%clk 0:00:39.1]} 39... g6 {[%clk 0:00:59.3]} 40. Bh4 {[%clk
0:00:37.5]} 40... Nc6 {[%clk 0:00:59.4]} 41. Be1 {[%clk 0:00:35.1]} 41... Nb8
{[%clk 0:00:58.6]} 42. Ke2 {[%clk 0:00:30.1]} 42... Nd7 {[%clk 0:00:58.2]} 43.
Nd3 {[%clk 0:00:20.5]} 43... Na3 {[%clk 0:00:49.7]} 44. Bc3 {[%clk 0:00:16.2]}
44... Nb6 {[%clk 0:00:45.8]} 45. a5 {[%clk 0:00:16.3]} 45... Nd7 {[%clk
0:00:43.9]} 46. f5 {[%clk 0:00:15.9]} 46... gxf5 {[%clk 0:00:41.4]} 47. gxf5
{[%clk 0:00:16.8]} 47... Nb5 {[%clk 0:00:25.8]} 48. Kd2 {[%clk 0:00:17.1]} 48...
Nb8 {[%clk 0:00:20.8]} 49. Nf4 {[%clk 0:00:14.9]} 49... Nc7 {[%clk 0:00:18.3]}
50. Kd3 {[%clk 0:00:14.3]} 50... Nc6 {[%clk 0:00:18.4]} 51. fxe6 {[%clk
0:00:13.3]} 51... fxe6 {[%clk 0:00:18.2]} 52. Bd2 {[%clk 0:00:13.1]} 52... Kb7
{[%clk 0:00:18.2]} 53. Ke3 {[%clk 0:00:07.3]} 53... Ka6 {[%clk 0:00:17.8]} 54.
Bc3 {[%clk 0:00:07.1]} 54... Nxa5 {[%clk 0:00:17.1]} 55. Bxa5 {[%clk 0:00:07.7]}
55... Kxa5 {[%clk 0:00:18]} 56. Kd3 {[%clk 0:00:08.3]} 56... Kb4 {[%clk
0:00:17.6]} 57. Ne2 {[%clk 0:00:07.3]} 57... a5 {[%clk 0:00:17.1]} 58. Nc1
{[%clk 0:00:07.4]} 58... a4 {[%clk 0:00:16.6]} 59. Na2+ {[%clk 0:00:07.8]} 59...
Kb3 {[%clk 0:00:15.5]} 60. Nc1+ {[%clk 0:00:08]} 60... Kb2 {[%clk 0:00:15.1]}
61. Kd2 {[%clk 0:00:08.5]} 61... a3 {[%clk 0:00:15.7]} 62. Nd3+ {[%clk
0:00:09.2]} 62... Kb1 {[%clk 0:00:15.6]} 63. Nb4 {[%clk 0:00:01.1]} 63... a2
{[%clk 0:00:15.8]} 64. Nxa2 {[%clk 0:00:02]} 64... Kxa2 {[%clk 0:00:16.6]} 65.
Kc3 {[%clk 0:00:02.9]} 65... Ka3 {[%clk 0:00:17.1]} 0-1